[Event "Titled Tuesday Blitz July 11 Early 2023"]
[White "Shimanov, Aleksandr"]
[Black "Nefedov, Sergey"]
[WhiteFideId "4198603"]
[BlackFideId "24113417"]
[WhiteElo "2914"]
[BlackElo "2643"]
[Result "1/2-1/2"]
[Round "10"]
[TimeControl "180+2"]
[Date "2023.07.11"]
[WhiteClock "0:00:04"]
[BlackClock "0:00:03"]
[Board "21"]

1. e4 {[%clk 0:03:00]}  d5 {[%clk 0:02:59]} 2. exd5 {[%clk 0:02:58]}  Qxd5 {[%clk 0:03:00]} 3. Nf3 {[%clk 0:02:57]}  Nf6 {[%clk 0:03:00]} 4. d4 {[%clk 0:02:52]}  Bg4 {[%clk 0:02:58]} 5. Be2 {[%clk 0:02:50]}  Nc6 {[%clk 0:02:59]} 6. c4 {[%clk 0:02:44]}  Qh5 {[%clk 0:02:57]} 7. d5 {[%clk 0:02:43]}  Ne5 {[%clk 0:02:55]} 8. Nc3 {[%clk 0:02:33]}  O-O-O {[%clk 0:02:49]} 9. Qa4 {[%clk 0:02:08]}  a6 {[%clk 0:02:41]} 10. Nxe5 {[%clk 0:01:56]}  Qxe5 {[%clk 0:02:39]} 11. f3 {[%clk 0:01:43]}  Bd7 {[%clk 0:02:36]} 12. Qb3 {[%clk 0:01:43]}  e6 {[%clk 0:02:35]} 13. f4 {[%clk 0:01:40]}  Qd4 {[%clk 0:02:27]} 14. Bd2 {[%clk 0:01:35]}  exd5 {[%clk 0:02:23]} 15. cxd5 {[%clk 0:01:36]}  Bd6 {[%clk 0:02:18]} 16. Rf1 {[%clk 0:01:25]}  Ne4 {[%clk 0:02:03]} 17. Nxe4 {[%clk 0:01:23]}  Qxe4 {[%clk 0:02:03]} 18. Qf3 {[%clk 0:00:36]}  Rhe8 {[%clk 0:01:50]} 19. Qxe4 {[%clk 0:00:30]}  Rxe4 {[%clk 0:01:49]} 20. Kd1 {[%clk 0:00:29]}  Rd4 {[%clk 0:01:31]} 21. Kc1 {[%clk 0:00:26]}  Rxd5 {[%clk 0:01:27]} 22. Bc3 {[%clk 0:00:27]}  f6 {[%clk 0:01:19]} 23. g3 {[%clk 0:00:25]}  Bc5 {[%clk 0:01:16]} 24. Rd1 {[%clk 0:00:18]}  Be3+ {[%clk 0:01:08]} 25. Kc2 {[%clk 0:00:18]}  Bf5+ {[%clk 0:01:05]} 26. Kb3 {[%clk 0:00:18]}  Rxd1 {[%clk 0:01:04]} 27. Rxd1 {[%clk 0:00:19]}  Rxd1 {[%clk 0:01:03]} 28. Bxd1 {[%clk 0:00:20]}  Bg1 {[%clk 0:01:03]} 29. Be1 {[%clk 0:00:11]}  Bxh2 {[%clk 0:00:47]} 30. Bf2 {[%clk 0:00:11]}  g6 {[%clk 0:00:47]} 31. Kc4 {[%clk 0:00:09]}  h5 {[%clk 0:00:44]} 32. Kd5 {[%clk 0:00:05]}  h4 {[%clk 0:00:41]} 33. gxh4 {[%clk 0:00:06]}  Bxf4 {[%clk 0:00:40]} 34. Bd4 {[%clk 0:00:07]}  c6+ {[%clk 0:00:31]} 35. Kc5 {[%clk 0:00:07]}  Kc7 {[%clk 0:00:18]} 36. Bxf6 {[%clk 0:00:07]}  Be6 {[%clk 0:00:13]} 37. a4 {[%clk 0:00:01]}  a5 {[%clk 0:00:13]} 38. Kd4 {[%clk 0:00:01]}  Kd6 {[%clk 0:00:05]} 39. Bc2 {[%clk 0:00:01]}  Bf7 {[%clk 0:00:04]} 40. Kc3 {[%clk 0:00:01]}  Be5+ {[%clk 0:00:03]} 41. Bxe5+ {[%clk 0:00:02]}  Kxe5 {[%clk 0:00:04]} 42. b4 {[%clk 0:00:03]}  b6 {[%clk 0:00:03]} 43. bxa5 {[%clk 0:00:03]}  bxa5 {[%clk 0:00:03]} 44. Bd1 {[%clk 0:00:03]}  c5 {[%clk 0:00:03]} 45. Kd3 {[%clk 0:00:03]}  Kf4 {[%clk 0:00:03]} 46. Be2 {[%clk 0:00:03]}  Kg3 {[%clk 0:00:03]} 47. h5 {[%clk 0:00:03]}  gxh5 {[%clk 0:00:03]} 48. Bxh5 {[%clk 0:00:02]}  Bxh5 {[%clk 0:00:03]} 49. Kc4 {[%clk 0:00:03]}  Be8 {[%clk 0:00:03]} 50. Kxc5 {[%clk 0:00:03]}  Bxa4 {[%clk 0:00:04]} 51. Kb6 {[%clk 0:00:04]}  Bc2 {[%clk 0:00:03]} 52. Kxa5 {[%clk 0:00:04]} 1/2-1/2


[Site "https://www.chess.com"]

[Event "Titled Tuesday Blitz July 11 Early 2023"]
[White "Zhigalko, Sergei"]
[Black "Weishaeutel, Moritz"]
[WhiteFideId "13502956"]
[BlackFideId "12967300"]
[WhiteElo "2870"]
[BlackElo "2607"]
[Result "1-0"]
[Round "10"]
[TimeControl "180+2"]
[Date "2023.07.11"]
[WhiteClock "0:01:32"]
[BlackClock "0:00:12"]
[Board "22"]

1. e4 {[%clk 0:03:00]}  e5 {[%clk 0:02:59]} 2. Nf3 {[%clk 0:03:00]}  Nf6 {[%clk 0:03:00]} 3. d4 {[%clk 0:02:57]}  Nxe4 {[%clk 0:03:00]} 4. Bd3 {[%clk 0:02:57]}  d5 {[%clk 0:02:59]} 5. Nxe5 {[%clk 0:02:58]}  Nd7 {[%clk 0:02:59]} 6. Nxd7 {[%clk 0:02:58]}  Bxd7 {[%clk 0:03:00]} 7. O-O {[%clk 0:02:58]}  Bd6 {[%clk 0:03:00]} 8. Nc3 {[%clk 0:02:59]}  Nxc3 {[%clk 0:02:58]} 9. bxc3 {[%clk 0:03:00]}  O-O {[%clk 0:02:59]} 10. Qh5 {[%clk 0:02:59]}  g6 {[%clk 0:02:59]} 11. Qxd5 {[%clk 0:02:58]}  Qh4 {[%clk 0:02:41]} 12. h3 {[%clk 0:02:43]}  Rfe8 {[%clk 0:01:31]} 13. Qg5 {[%clk 0:02:23]}  Qxg5 {[%clk 0:01:30]} 14. Bxg5 {[%clk 0:02:24]}  c5 {[%clk 0:01:17]} 15. Rfe1 {[%clk 0:02:17]}  cxd4 {[%clk 0:01:05]} 16. cxd4 {[%clk 0:02:16]}  Bb4 {[%clk 0:01:06]} 17. Rxe8+ {[%clk 0:02:08]}  Rxe8 {[%clk 0:01:07]} 18. Rb1 {[%clk 0:02:03]}  a5 {[%clk 0:00:39]} 19. c4 {[%clk 0:01:46]}  Kg7 {[%clk 0:00:39]} 20. d5 {[%clk 0:01:36]}  f6 {[%clk 0:00:39]} 21. Be3 {[%clk 0:01:34]}  Rc8 {[%clk 0:00:24]} 22. a3 {[%clk 0:01:31]}  Bxa3 {[%clk 0:00:12]} 23. Rxb7 {[%clk 0:01:32]} 1-0


[Site "https://www.chess.com"]

[Event "Titled Tuesday Blitz July 11 Early 2023"]
[White "ArtemDyachuk"]
[Black "Kozak, Antoni"]
[BlackFideId "21832030"]
[WhiteElo "2595"]
[BlackElo "2773"]
[Result "0-1"]
[Round "10"]
[TimeControl "180+2"]
[Date "2023.07.11"]
[WhiteClock "0:00:01"]
[BlackClock "0:00:12"]
[Board "26"]

1. e4 {[%clk 0:03:00]}  c5 {[%clk 0:03:00]} 2. Nf3 {[%clk 0:03:00]}  d6 {[%clk 0:02:58]} 3. d4 {[%clk 0:03:00]}  cxd4 {[%clk 0:02:59]} 4. Nxd4 {[%clk 0:03:00]}  Nf6 {[%clk 0:03:00]} 5. Nc3 {[%clk 0:03:00]}  a6 {[%clk 0:03:01]} 6. Qf3 {[%clk 0:02:59]}  e5 {[%clk 0:02:46]} 7. Nf5 {[%clk 0:02:58]}  h6 {[%clk 0:02:37]} 8. Bc4 {[%clk 0:02:36]}  Nc6 {[%clk 0:02:34]} 9. Be3 {[%clk 0:02:30]}  g6 {[%clk 0:02:28]} 10. Nh4 {[%clk 0:02:01]}  Be7 {[%clk 0:02:09]} 11. Nd5 {[%clk 0:01:59]}  Nxd5 {[%clk 0:01:54]} 12. Bxd5 {[%clk 0:02:00]}  Rf8 {[%clk 0:01:50]} 13. Bxh6 {[%clk 0:01:58]}  Nd4 {[%clk 0:01:41]} 14. Qd3 {[%clk 0:01:27]}  Rh8 {[%clk 0:01:21]} 15. Nxg6 {[%clk 0:01:19]}  Rxh6 {[%clk 0:01:16]} 16. Nxe7 {[%clk 0:01:19]}  Qxe7 {[%clk 0:01:17]} 17. O-O-O {[%clk 0:01:17]}  Be6 {[%clk 0:01:10]} 18. c3 {[%clk 0:01:16]}  Nc6 {[%clk 0:01:09]} 19. Bxc6+ {[%clk 0:01:16]}  bxc6 {[%clk 0:01:09]} 20. Qxd6 {[%clk 0:01:17]}  Qxd6 {[%clk 0:00:57]} 21. Rxd6 {[%clk 0:01:16]}  Rc8 {[%clk 0:00:58]} 22. h4 {[%clk 0:01:11]}  Ke7 {[%clk 0:00:57]} 23. Rd3 {[%clk 0:01:02]}  Bxa2 {[%clk 0:00:55]} 24. Rg3 {[%clk 0:01:01]}  Be6 {[%clk 0:00:50]} 25. Rg5 {[%clk 0:00:55]}  Kf6 {[%clk 0:00:48]} 26. g3 {[%clk 0:00:54]}  Rd8 {[%clk 0:00:43]} 27. Kc2 {[%clk 0:00:47]}  Bc4 {[%clk 0:00:34]} 28. Re1 {[%clk 0:00:39]}  Rhh8 {[%clk 0:00:32]} 29. Re3 {[%clk 0:00:23]}  Ke6 {[%clk 0:00:28]} 30. b3 {[%clk 0:00:22]}  Bf1 {[%clk 0:00:23]} 31. c4 {[%clk 0:00:22]}  Rd4 {[%clk 0:00:19]} 32. f4 {[%clk 0:00:17]}  exf4 {[%clk 0:00:19]} 33. gxf4 {[%clk 0:00:18]}  Rxh4 {[%clk 0:00:19]} 34. Re5+ {[%clk 0:00:17]}  Kd6 {[%clk 0:00:19]} 35. Rf5 {[%clk 0:00:17]}  Ke7 {[%clk 0:00:19]} 36. Re5+ {[%clk 0:00:14]}  Kf8 {[%clk 0:00:20]} 37. Kc3 {[%clk 0:00:14]}  Rd7 {[%clk 0:00:12]} 38. f5 {[%clk 0:00:12]}  Rh2 {[%clk 0:00:08]} 39. Ra5 {[%clk 0:00:10]}  Rhd2 {[%clk 0:00:06]} 40. e5 {[%clk 0:00:08]}  R2d3+ {[%clk 0:00:05]} 41. Rxd3 {[%clk 0:00:08]}  Bxd3 {[%clk 0:00:06]} 42. e6 {[%clk 0:00:07]}  fxe6 {[%clk 0:00:06]} 43. fxe6 {[%clk 0:00:08]}  Rd6 {[%clk 0:00:06]} 44. Re5 {[%clk 0:00:04]}  Ke7 {[%clk 0:00:05]} 45. Kb4 {[%clk 0:00:03]}  Rxe6 {[%clk 0:00:05]} 46. Ra5 {[%clk 0:00:03]}  Rd6 {[%clk 0:00:04]} 47. Kc5 {[%clk 0:00:02]}  Be4 {[%clk 0:00:03]} 48. Rxa6 {[%clk 0:00:02]}  Re6 {[%clk 0:00:04]} 49. Ra7+ {[%clk 0:00:03]}  Kf6 {[%clk 0:00:04]} 50. Kd4 {[%clk 0:00:02]}  Bh1 {[%clk 0:00:04]} 51. c5 {[%clk 0:00:01]}  Re4+ {[%clk 0:00:05]} 52. Kc3 {[%clk 0:00:02]}  Re3+ {[%clk 0:00:05]} 53. Kb4 {[%clk 0:00:02]}  Bd5 {[%clk 0:00:05]} 54. Ra3 {[%clk 0:00:01]}  Ke5 {[%clk 0:00:05]} 55. Ka4 {[%clk 0:00:01]}  Kd4 {[%clk 0:00:06]} 56. Kb4 {[%clk 0:00:02]}  Rd3 {[%clk 0:00:06]} 57. Ka5 {[%clk 0:00:01]}  Kxc5 {[%clk 0:00:06]} 58. b4+ {[%clk 0:00:02]}  Kd4 {[%clk 0:00:07]} 59. Ra1 {[%clk 0:00:02]}  Bc4 {[%clk 0:00:06]} 60. Kb6 {[%clk 0:00:02]}  Bb5 {[%clk 0:00:06]} 61. Rc1 {[%clk 0:00:02]}  Rc3 {[%clk 0:00:07]} 62. Rd1+ {[%clk 0:00:02]}  Kc4 {[%clk 0:00:07]} 63. Ka5 {[%clk 0:00:01]}  Ra3+ {[%clk 0:00:07]} 64. Kb6 {[%clk 0:00:02]}  Kxb4 {[%clk 0:00:08]} 65. Rb1+ {[%clk 0:00:02]}  Rb3 {[%clk 0:00:09]} 66. Rh1 {[%clk 0:00:03]}  c5 {[%clk 0:00:08]} 67. Rh4+ {[%clk 0:00:03]}  c4 {[%clk 0:00:09]} 68. Kb7 {[%clk 0:00:03]}  Ba4 {[%clk 0:00:09]} 69. Kc7 {[%clk 0:00:03]}  Rd3 {[%clk 0:00:09]} 70. Kb6 {[%clk 0:00:03]}  Rd7 {[%clk 0:00:10]} 71. Rg4 {[%clk 0:00:02]}  Rd6+ {[%clk 0:00:10]} 72. Kc7 {[%clk 0:00:02]}  Rc6+ {[%clk 0:00:11]} 73. Kb7 {[%clk 0:00:02]}  Rh6 {[%clk 0:00:11]} 74. Rg5 {[%clk 0:00:02]}  c3 {[%clk 0:00:11]} 75. Rg4+ {[%clk 0:00:02]}  Kb3 {[%clk 0:00:12]} 76. Rg3 {[%clk 0:00:03]}  Kb2 {[%clk 0:00:12]} 77. Rg4 {[%clk 0:00:02]}  Bb3 {[%clk 0:00:12]} 78. Rb4 {[%clk 0:00:02]}  c2 {[%clk 0:00:12]} 79. Ka7 {[%clk 0:00:02]}  c1=Q {[%clk 0:00:13]} 80. Rb7 {[%clk 0:00:02]}  Qa1+ {[%clk 0:00:12]} 81. Kb8 {[%clk 0:00:02]}  Rh8+ {[%clk 0:00:11]} 82. Kc7 {[%clk 0:00:02]}  Qa5+ {[%clk 0:00:11]} 83. Kd6 {[%clk 0:00:02]}  Qd5+ {[%clk 0:00:11]} 84. Kc7 {[%clk 0:00:02]}  Qc5+ {[%clk 0:00:12]} 85. Kd7 {[%clk 0:00:02]}  Qc8+ {[%clk 0:00:13]} 86. Ke7 {[%clk 0:00:01]}  Qe6# {[%clk 0:00:12]} 0-1


[Site "https://www.chess.com"]

[Event "Titled Tuesday Blitz July 11 Early 2023"]
[White "Bauman_Guy"]
[Black "Rodchenkov, Sergey D."]
[BlackFideId "4168712"]
[WhiteElo "2757"]
[BlackElo "2586"]
[Result "1-0"]
[Round "10"]
[TimeControl "180+2"]
[Date "2023.07.11"]
[WhiteClock "0:01:35"]
[BlackClock "0:00:07"]
[Board "27"]

1. e4 {[%clk 0:03:00]}  c5 {[%clk 0:02:59]} 2. Nf3 {[%clk 0:03:01]}  d6 {[%clk 0:02:59]} 3. d4 {[%clk 0:03:01]}  cxd4 {[%clk 0:03:00]} 4. Nxd4 {[%clk 0:03:01]}  Nf6 {[%clk 0:03:00]} 5. Nc3 {[%clk 0:03:02]}  a6 {[%clk 0:03:00]} 6. h3 {[%clk 0:03:02]}  e5 {[%clk 0:03:00]} 7. Nde2 {[%clk 0:03:03]}  h5 {[%clk 0:03:01]} 8. Bg5 {[%clk 0:03:03]}  Be6 {[%clk 0:03:01]} 9. Nc1 {[%clk 0:03:03]}  Nbd7 {[%clk 0:02:59]} 10. Be2 {[%clk 0:03:02]}  Be7 {[%clk 0:02:57]} 11. Nb3 {[%clk 0:03:02]}  b5 {[%clk 0:02:47]} 12. a4 {[%clk 0:03:00]}  b4 {[%clk 0:01:51]} 13. Nd5 {[%clk 0:03:00]}  Bxd5 {[%clk 0:01:49]} 14. exd5 {[%clk 0:02:59]}  Ne4 {[%clk 0:01:35]} 15. Be3 {[%clk 0:02:33]}  Bg5 {[%clk 0:01:29]} 16. Qd3 {[%clk 0:02:33]}  f5 {[%clk 0:01:18]} 17. a5 {[%clk 0:02:23]}  g6 {[%clk 0:01:05]} 18. O-O {[%clk 0:02:22]}  Kf7 {[%clk 0:00:56]} 19. f4 {[%clk 0:02:10]}  Bf6 {[%clk 0:00:39]} 20. fxe5 {[%clk 0:01:48]}  Nxe5 {[%clk 0:00:39]} 21. Qd1 {[%clk 0:01:48]}  Bg5 {[%clk 0:00:34]} 22. Qc1 {[%clk 0:01:48]}  Bxe3+ {[%clk 0:00:14]} 23. Qxe3 {[%clk 0:01:48]}  Rc8 {[%clk 0:00:15]} 24. Nd4 {[%clk 0:01:48]}  Qf6 {[%clk 0:00:09]} 25. Bxa6 {[%clk 0:01:44]}  Rc5 {[%clk 0:00:09]} 26. Bd3 {[%clk 0:01:41]}  Ng4 {[%clk 0:00:09]} 27. hxg4 {[%clk 0:01:40]}  hxg4 {[%clk 0:00:10]} 28. Bxe4 {[%clk 0:01:39]}  Re8 {[%clk 0:00:10]} 29. Ne6 {[%clk 0:01:35]}  Rxc2 {[%clk 0:00:07]} 30. Bxc2 {[%clk 0:01:35]} 1-0


[Site "https://www.chess.com"]

[Event "Titled Tuesday Blitz July 11 Early 2023"]
[White "Haug, Havard"]
[Black "Weetik, Vjacheslav"]
[WhiteFideId "1547887"]
[BlackFideId "4153472"]
[WhiteElo "2650"]
[BlackElo "2720"]
[Result "1-0"]
[Round "10"]
[TimeControl "180+2"]
[Date "2023.07.11"]
[WhiteClock "0:00:06"]
[BlackClock "0:00:00"]
[Board "30"]

1. e4 {[%clk 0:03:00]}  c6 {[%clk 0:02:54]} 2. d4 {[%clk 0:02:59]}  d5 {[%clk 0:02:54]} 3. exd5 {[%clk 0:03:00]}  cxd5 {[%clk 0:02:55]} 4. Bd3 {[%clk 0:03:00]}  Nf6 {[%clk 0:02:54]} 5. c4 {[%clk 0:02:55]}  dxc4 {[%clk 0:02:49]} 6. Bxc4 {[%clk 0:02:54]}  Nc6 {[%clk 0:02:50]} 7. d5 {[%clk 0:02:48]}  Ne5 {[%clk 0:02:44]} 8. Bb3 {[%clk 0:02:47]}  Bf5 {[%clk 0:02:27]} 9. Ba4+ {[%clk 0:02:35]}  Nfd7 {[%clk 0:02:26]} 10. Bc2 {[%clk 0:02:31]}  Bxc2 {[%clk 0:02:19]} 11. Qxc2 {[%clk 0:02:32]}  Qa5+ {[%clk 0:02:04]} 12. Nc3 {[%clk 0:02:29]}  Qa6 {[%clk 0:02:04]} 13. Nge2 {[%clk 0:02:26]}  Nd3+ {[%clk 0:02:01]} 14. Kf1 {[%clk 0:02:27]}  g6 {[%clk 0:01:47]} 15. a4 {[%clk 0:02:23]}  Rc8 {[%clk 0:01:44]} 16. Be3 {[%clk 0:02:02]}  Bg7 {[%clk 0:01:42]} 17. h4 {[%clk 0:01:59]}  O-O {[%clk 0:01:30]} 18. Ra3 {[%clk 0:01:37]}  N7e5 {[%clk 0:01:28]} 19. Qb3 {[%clk 0:01:20]}  Nc4 {[%clk 0:01:21]} 20. Ra2 {[%clk 0:01:16]}  Qf6 {[%clk 0:01:13]} 21. Ne4 {[%clk 0:01:13]}  Nxe3+ {[%clk 0:01:12]} 22. Kg1 {[%clk 0:01:13]}  Qe5 {[%clk 0:00:46]} 23. Qxd3 {[%clk 0:01:10]}  Nxd5 {[%clk 0:00:42]} 24. Ra1 {[%clk 0:00:56]}  Rfd8 {[%clk 0:00:31]} 25. Qf3 {[%clk 0:00:53]}  Qxb2 {[%clk 0:00:31]} 26. Rf1 {[%clk 0:00:52]}  Nf6 {[%clk 0:00:28]} 27. N4g3 {[%clk 0:00:48]}  h5 {[%clk 0:00:27]} 28. Kh2 {[%clk 0:00:44]}  Ng4+ {[%clk 0:00:27]} 29. Kh3 {[%clk 0:00:45]}  Qa2 {[%clk 0:00:19]} 30. Rd1 {[%clk 0:00:29]}  Qe6 {[%clk 0:00:18]} 31. Nf4 {[%clk 0:00:25]}  Nxf2+ {[%clk 0:00:17]} 32. Kh2 {[%clk 0:00:26]}  Ng4+ {[%clk 0:00:18]} 33. Kh3 {[%clk 0:00:26]}  Qc6 {[%clk 0:00:15]} 34. Qe2 {[%clk 0:00:21]}  e5 {[%clk 0:00:10]} 35. Nd3 {[%clk 0:00:14]}  Qe6 {[%clk 0:00:08]} 36. Nc5 {[%clk 0:00:14]}  Nf2+ {[%clk 0:00:08]} 37. Kh2 {[%clk 0:00:14]}  Ng4+ {[%clk 0:00:08]} 38. Kh3 {[%clk 0:00:14]}  Qe7 {[%clk 0:00:08]} 39. Nce4 {[%clk 0:00:13]}  f6 {[%clk 0:00:08]} 40. Qa2+ {[%clk 0:00:12]}  Kh7 {[%clk 0:00:08]} 41. Qe2 {[%clk 0:00:12]}  Qe6 {[%clk 0:00:07]} 42. Rxd8 {[%clk 0:00:08]}  Rxd8 {[%clk 0:00:07]} 43. Re1 {[%clk 0:00:09]}  Rd4 {[%clk 0:00:04]} 44. Qf3 {[%clk 0:00:08]}  Bh6 {[%clk 0:00:04]} 45. Rb1 {[%clk 0:00:05]}  b6 {[%clk 0:00:03]} 46. a5 {[%clk 0:00:05]}  Qd7 {[%clk 0:00:03]} 47. axb6 {[%clk 0:00:03]}  axb6 {[%clk 0:00:04]} 48. Rxb6 {[%clk 0:00:03]}  Rd1 {[%clk 0:00:04]} 49. Nxf6+ {[%clk 0:00:02]}  Nxf6+ {[%clk 0:00:04]} 50. Kh2 {[%clk 0:00:02]}  Ng4+ {[%clk 0:00:04]} 51. Kh3 {[%clk 0:00:03]}  e4 {[%clk 0:00:04]} 52. Nxe4 {[%clk 0:00:02]}  Rh1+ {[%clk 0:00:03]} 53. Kg3 {[%clk 0:00:02]}  Qc7+ {[%clk 0:00:04]} 54. Rd6 {[%clk 0:00:02]}  Bg7 {[%clk 0:00:03]} 55. Ng5+ {[%clk 0:00:02]}  Kg8 {[%clk 0:00:03]} 56. Qb3+ {[%clk 0:00:02]}  Kf8 {[%clk 0:00:03]} 57. Ne6+ {[%clk 0:00:01]}  Ke7 {[%clk 0:00:03]} 58. Nxc7 {[%clk 0:00:02]}  Be5+ {[%clk 0:00:04]} 59. Kf3 {[%clk 0:00:02]}  Kxd6 {[%clk 0:00:04]} 60. Nb5+ {[%clk 0:00:02]}  Kc5 {[%clk 0:00:05]} 61. Na3 {[%clk 0:00:01]}  Rc1 {[%clk 0:00:04]} 62. Qb5+ {[%clk 0:00:01]}  Kd4 {[%clk 0:00:04]} 63. Qb4+ {[%clk 0:00:01]}  Kd3 {[%clk 0:00:04]} 64. Qb3+ {[%clk 0:00:02]}  Kd2 {[%clk 0:00:03]} 65. Nc4+ {[%clk 0:00:02]}  Rxc4 {[%clk 0:00:03]} 66. Qxc4 {[%clk 0:00:03]}  Bc3 {[%clk 0:00:02]} 67. Qd5+ {[%clk 0:00:03]}  Kc1 {[%clk 0:00:03]} 68. Qc5 {[%clk 0:00:02]}  Kb2 {[%clk 0:00:02]} 69. Qb6+ {[%clk 0:00:02]}  Kc1 {[%clk 0:00:02]} 70. Ke4 {[%clk 0:00:02]}  Ne5 {[%clk 0:00:03]} 71. Qe6 {[%clk 0:00:02]}  Kd2 {[%clk 0:00:03]} 72. Qxe5 {[%clk 0:00:02]}  Bxe5 {[%clk 0:00:03]} 73. Kxe5 {[%clk 0:00:03]}  Ke3 {[%clk 0:00:04]} 74. Kf6 {[%clk 0:00:04]}  Kf4 {[%clk 0:00:05]} 75. Kxg6 {[%clk 0:00:04]}  Kg4 {[%clk 0:00:05]} 76. g3 {[%clk 0:00:05]}  Kxg3 {[%clk 0:00:05]} 77. Kxh5 {[%clk 0:00:06]}  Kf4 {[%clk 0:00:00]} 78. Kg6 {[%clk 0:00:06]} 1-0


[Site "https://www.chess.com"]

[Event "Titled Tuesday Blitz July 11 Early 2023"]
[White "Petrosian, Karlen"]
[Black "lagarto93"]
[WhiteFideId "4176146"]
[WhiteElo "2711"]
[BlackElo "2526"]
[Result "0-1"]
[Round "10"]
[TimeControl "180+2"]
[Date "2023.07.11"]
[WhiteClock "0:00:00"]
[BlackClock "0:00:21"]
[Board "32"]

1. e4 {[%clk 0:03:00]}  e6 {[%clk 0:02:59]} 2. Qe2 {[%clk 0:03:00]}  c5 {[%clk 0:02:58]} 3. Nf3 {[%clk 0:03:00]}  Nc6 {[%clk 0:02:59]} 4. g3 {[%clk 0:03:01]}  g6 {[%clk 0:02:59]} 5. Bg2 {[%clk 0:03:01]}  Bg7 {[%clk 0:02:59]} 6. O-O {[%clk 0:03:01]}  Nge7 {[%clk 0:03:00]} 7. e5 {[%clk 0:03:01]}  d6 {[%clk 0:02:59]} 8. exd6 {[%clk 0:03:00]}  Qxd6 {[%clk 0:03:00]} 9. Nc3 {[%clk 0:03:00]}  b6 {[%clk 0:02:53]} 10. Ne4 {[%clk 0:02:59]}  Qd7 {[%clk 0:02:52]} 11. d3 {[%clk 0:02:57]}  Bb7 {[%clk 0:02:52]} 12. Bh6 {[%clk 0:02:55]}  O-O {[%clk 0:02:48]} 13. Bxg7 {[%clk 0:02:53]}  Kxg7 {[%clk 0:02:49]} 14. Rfe1 {[%clk 0:02:48]}  Nf5 {[%clk 0:02:47]} 15. h4 {[%clk 0:02:21]}  Nfd4 {[%clk 0:02:45]} 16. Nxd4 {[%clk 0:02:17]}  Nxd4 {[%clk 0:02:44]} 17. Qd2 {[%clk 0:02:18]}  Rae8 {[%clk 0:02:32]} 18. h5 {[%clk 0:02:15]}  f5 {[%clk 0:02:31]} 19. h6+ {[%clk 0:02:15]}  Kg8 {[%clk 0:02:29]} 20. Ng5 {[%clk 0:02:15]}  Bxg2 {[%clk 0:02:24]} 21. Kxg2 {[%clk 0:02:16]}  Qd5+ {[%clk 0:02:21]} 22. f3 {[%clk 0:02:06]}  f4 {[%clk 0:02:00]} 23. gxf4 {[%clk 0:02:07]}  Rf5 {[%clk 0:02:00]} 24. Re4 {[%clk 0:02:01]}  Ref8 {[%clk 0:01:49]} 25. Nh3 {[%clk 0:01:26]}  Rh5 {[%clk 0:01:37]} 26. c3 {[%clk 0:01:18]}  Nxf3 {[%clk 0:01:35]} 27. Qe2 {[%clk 0:00:55]}  Nh4+ {[%clk 0:01:29]} 28. Kh2 {[%clk 0:00:51]}  Qf5 {[%clk 0:01:24]} 29. Re5 {[%clk 0:00:50]}  Nf3+ {[%clk 0:01:13]} 30. Qxf3 {[%clk 0:00:49]}  Qxe5 {[%clk 0:01:14]} 31. Rf1 {[%clk 0:00:48]}  Qd5 {[%clk 0:01:05]} 32. Qg3 {[%clk 0:00:47]}  Rhf5 {[%clk 0:01:02]} 33. Rf2 {[%clk 0:00:36]}  e5 {[%clk 0:01:02]} 34. fxe5 {[%clk 0:00:34]}  Qxe5 {[%clk 0:01:01]} 35. Qxe5 {[%clk 0:00:32]}  Rxe5 {[%clk 0:01:02]} 36. Rd2 {[%clk 0:00:25]}  Rd8 {[%clk 0:00:49]} 37. Kg2 {[%clk 0:00:24]}  Re3 {[%clk 0:00:47]} 38. Nf2 {[%clk 0:00:22]}  Rd5 {[%clk 0:00:42]} 39. a3 {[%clk 0:00:19]}  Rg5+ {[%clk 0:00:42]} 40. Kf1 {[%clk 0:00:19]}  Rh5 {[%clk 0:00:40]} 41. Kg2 {[%clk 0:00:17]}  Rg5+ {[%clk 0:00:39]} 42. Kf1 {[%clk 0:00:18]}  Rge5 {[%clk 0:00:39]} 43. Ng4 {[%clk 0:00:13]}  Rf5+ {[%clk 0:00:38]} 44. Kg2 {[%clk 0:00:12]}  Re7 {[%clk 0:00:37]} 45. Nf2 {[%clk 0:00:11]}  Kf7 {[%clk 0:00:35]} 46. Ne4 {[%clk 0:00:11]}  Rd7 {[%clk 0:00:32]} 47. b4 {[%clk 0:00:07]}  g5 {[%clk 0:00:32]} 48. Kg3 {[%clk 0:00:07]}  Kg6 {[%clk 0:00:31]} 49. b5 {[%clk 0:00:07]}  Kxh6 {[%clk 0:00:29]} 50. Nf2 {[%clk 0:00:08]}  Kg6 {[%clk 0:00:29]} 51. Re2 {[%clk 0:00:08]}  h5 {[%clk 0:00:28]} 52. Re8 {[%clk 0:00:06]}  h4+ {[%clk 0:00:27]} 53. Kg2 {[%clk 0:00:06]}  Rf4 {[%clk 0:00:22]} 54. Rg8+ {[%clk 0:00:03]}  Rg7 {[%clk 0:00:22]} 55. Re8 {[%clk 0:00:03]}  g4 {[%clk 0:00:22]} 56. Re6+ {[%clk 0:00:02]}  Kf5 {[%clk 0:00:22]} 57. Rh6 {[%clk 0:00:02]}  h3+ {[%clk 0:00:22]} 58. Kg1 {[%clk 0:00:01]}  Rf3 {[%clk 0:00:21]} 59. Ne4 {[%clk 0:00:00]}  Kf4 {[%clk 0:00:21]} 0-1


[Site "https://www.chess.com"]